Cogmind - Beta 16 @@@ ROGUE MODE // 2025.12.01 @ 22:08:52 Player: mephiles96 Result: Destroyed by Y-45 Defender with Beam Rifle Performance ------------- Evolutions (2) 1000 Regions Visited (3) 600 Robots Destroyed (18) 90 Value Destroyed (471) 471 Prototype IDs (0) 0 Alien Tech Used (0) 0 Bonus (0) 0 TOTAL SCORE: 2161 Bonus ------- None Cogmind --------- Core Integrity 0/550 Matter 300/300 Energy 73/100 System Corruption 0% Temperature Cool (9) Movement Core (700) Ox13 Location -8/Materials Parts ------- > --- POWER (2) -------- (None) > --- PROPULSION (4) --- (None) > --- UTILITY (3) ------ High-capacity Storage Unit ECM Suite > --- WEAPON (2) ------- (None) > --- INVENTORY (20) --- Aluminum Leg Aluminum Leg Improved Aluminum Leg High-capacity Storage Unit Small Matter Pod (23) Weight Redist. System ECM Suite Core Shielding Core Shielding Core Shielding Gauss Rifle Gauss Rifle Improved Light Cannon Improved Light Cannon Rocket Launcher Rocket Launcher Improved Datajack Peak State ------------ > --- POWER ------------ Ion Engine Light Nuclear Core > --- PROPULSION ------- Aluminum Leg Aluminum Leg Aluminum Leg Aluminum Leg > --- UTILITY ---------- High-capacity Storage Unit ECM Suite Recalibrator > --- WEAPON ----------- Gauss Rifle Gauss Rifle > --- INVENTORY -------- Aluminum Leg Aluminum Leg Improved Aluminum Leg High-capacity Storage Unit Small Matter Pod Weight Redist. System ECM Suite Core Shielding Core Shielding Core Shielding Gauss Rifle Gauss Rifle Improved Light Cannon Improved Light Cannon Rocket Launcher Rocket Launcher Improved Datajack [Rating: 25] Favorites ----------- Power Light Ion Engine Engine Light Ion Engine Power Core Light Nuclear Core Propulsion Aluminum Leg Leg Aluminum Leg Wheel Wheel Utility High-capacity Storage Unit Device ECM Suite Storage High-capacity Storage Unit Processor Improved Targeting Computer Weapon Small Laser Energy Gun Small Laser Ballistic Gun Gauss Rifle Ballistic Cannon Improved Light Cannon Build | -11 -10 -9 -8 ------- Run | Yrd Mat Mat Mat Slots Evolved 4 | . . 2 2 Power 1 | . . . 1 Propulsion 2 | . . 2 . Utility 1 | . . . 1 Weapon . | . . . . Parts Attached 21 | 6 2 7 6 Power 3 | 1 . 1 1 Engine 2 | 1 . 1 . Core 1 | . . . 1 Reactor . | . . . . Propulsion 7 | 3 . 2 2 Treads . | . . . . Leg 6 | 2 . 2 2 Wheel 1 | 1 . . . Hover . | . . . . Flight . | . . . . Utility 5 | . 2 2 1 Device 3 | . 1 1 1 Storage 1 | . . 1 . Processor 1 | . 1 . . Hackware . | . . . . Protection . | . . . . Artifact . | . . . . Weapon 6 | 2 . 2 2 Energy Gun 2 | 2 . . . Energy Cannon . | . . . . Ballistic Gun 2 | . . . 2 Ballistic Cannon 2 | . . 2 . Launcher . | . . . . Special Weapon . | . . . . Impact Weapon . | . . . . Slashing Weapon . | . . . . Piercing Weapon . | . . . . Special Melee Weapon . | . . . . Unidentified Prototypes . | . . . . Parts Lost 9 | . . . 9 Power 2 | . . . 2 Propulsion 4 | . . . 4 Utility 1 | . . . 1 Weapon 2 | . . . 2 Highest Loss Streak 7 | . . . 7 To Critical Strikes . | . . . . Average Backups 6 | 3 4 10 15 Power . | . 1 . . Propulsion 1 | 1 . 1 2 Utility 2 | . . 7 7 Weapon 1 | 1 2 1 5 Tool/Special . | . . . . Unused Backups 18 | . 3 1 14 Power . | . . . . Propulsion 2 | . 1 . 1 Utility 9 | . . 1 8 Weapon 6 | . 2 . 4 Tool/Special 1 | . . . 1 Average Slot Usage (%) 93 | . 93 99 80 Engine 10 | . 14 11 6 Core 1 | . . . 4 Leg 37 | . 28 43 30 Device 10 | . 10 9 13 Storage 8 | . . 10 9 Processor 2 | . 10 2 . Energy Gun 12 | . 28 15 . Ballistic Gun 2 | . . . 8 Ballistic Cannon 6 | . . 6 8 Peak Build Rating 25 | 5 9 12 25 Average Rating 7 | 4 8 10 17 On Entrance 6 | . 5 9 12 Avg Prop Armor Cover (%) 10 | 10 10 . . Naked Turns . | . . . . Heaviest Build 61 | 6 6 55 61 Greatest Support 46 | 10 26 46 40 Greatest Overweight (x) 16 | . . 1 16 Average Overweight (x) . | . . . 1 Largest Inventory Capacity 20 | 5 5 20 20 Average Capacity 9 | 5 5 19 20 Most Carried 17 | 5 5 13 17 Average Carried 6 | 3 4 11 15 Final Capacity 20 | 5 5 20 20 Final Carried 17 | 4 5 13 17 Class Distribution -------------------- 97% | Mutant Dominant Class ---------------- Mutant | -10/Materials Mutant | -9/Materials Mutant | -8/Materials Resources | -11 -10 -9 -8 ----------- Run | Yrd Mat Mat Mat Matter Collected 660 | 254 22 157 227 Remotely . | . . . . Salvage Created 517 | 48 44 190 235 Parts 37 | 1 3 15 18 Haulers Intercepted . | . . . . Recyclers Shooed 1 | . . . 1 Parts Field Recycled . | . . . . Retrieved Matter . | . . . . Parts Self-Destructed . | . . . . Prevented . | . . . . Parts Restored . | . . . . Kills | -11 -10 -9 -8 ------- Run | Yrd Mat Mat Mat Combat Hostiles Destroyed 14 | 1 1 6 6 Guns 11 | 1 1 5 4 Cannons 3 | . . 1 2 Classes Destroyed 5 | 1 . 3 1 Builder 2 | . . . 2 Watcher 2 | . . 2 . Swarmer 5 | . . 3 2 Grunt 8 | 1 1 2 4 Sentry 1 | . . 1 . Best Kill Streak 5 | 1 1 3 5 Combat Bots Only 3 | 1 1 3 3 Max Kills in Single Turn 3 | 1 1 1 3 Gunslinging . | . . . . Exploded . | . . . . Melee . | . . . . Uniques/NPCs Destroyed . | . . . . Combat | -11 -10 -9 -8 -------- Run | Yrd Mat Mat Mat Hostile Shots Fired 199 | 2 6 24 167 Missed 67 | . 1 10 56 Hits 132 | 2 5 14 111 Projectile 132 | 2 5 14 111 Critical Strikes 6 | . . 1 5 Damage Taken 1774 | 21 54 138 1561 Core 608 | . 21 35 552 Absorbed by Shields . | . . . . Core Remaining (%) 94 | 100 91 91 . Volleys Fired 48 | 1 4 17 26 Largest 2 | 2 2 2 2 Hottest 90 | 90 90 90 66 Shots Fired 95 | 2 8 33 52 Gun 59 | 2 8 13 36 Cannon 36 | . . 20 16 Launcher . | . . . . Special . | . . . . Kinetic 72 | . . 20 52 Thermal 23 | 2 8 13 . Explosive . | . . . . Electromagnetic . | . . . . Robot Hit Streak 9 | 2 5 3 9 Robot Miss Streak 9 | . 2 9 7 Penetration Max 1 | . . . 1 Secondary Targets 1 | . . . 1 Max Gunslinging Chain 1 | . . . 1 Shots Hit Robots 52 | 2 5 16 29 Core Hits 26 | 2 2 10 12 Critical Kills . | . . . . Critical Parts Destroyed . | . . . . Critical Strikes 1 | . . 1 . Blast 1 | . . 1 . Melee Attacks . | . . . . Impact . | . . . . Slashing . | . . . . Piercing . | . . . . Sneak Attacks . | . . . . Combat Hostiles . | . . . . Follow-up Attacks . | . . . . Damage Inflicted 1025 | 23 73 273 656 Guns 672 | 23 70 103 476 Cannons 341 | . . 170 171 Explosions . | . . . . Melee . | . . . . Ramming 12 | . 3 . 9 Kinetic 817 | . . 170 647 Thermal 196 | 23 70 103 . Explosive . | . . . . Electromagnetic . | . . . . Impact . | . . . . Slashing . | . . . . Piercing . | . . . . Highest Corruption . | . . . . Average Corruption . | . . . . Corruption Purged . | . . . . Corruption Blocked . | . . . . Overload Shots . | . . . . Overflow Damage . | . . . . Projectiles . | . . . . Explosions . | . . . . Melee . | . . . . Knockbacks 2 | . . 2 . Impact . | . . . . Kinetic 2 | . . 2 . Secondary . | . . . . Self-Inflicted Damage . | . . . . Shots . | . . . . Rammed . | . . . . Targets Rammed 4 | . 1 . 3 Kicked 4 | . 1 . 3 Crushed . | . . . . Highest Temperature 144 | 30 144 63 36 Average Temperature 27 | 17 74 24 16 Received Heat Transfer 801 | 12 30 39 720 Siege Activations . | . . . . Martial Activations . | . . . . Shielding Activations . | . . . . Robots Disrupted . | . . . . Combat Hostiles . | . . . . Robots Corrupted . | . . . . Combat Hostiles . | . . . . Parts Fried . | . . . . Impact Corruptions . | . . . . Robots Melted . | . . . . Combat Hostiles . | . . . . Parts Melted 1 | . . 1 . Heat Transferred 509 | 62 186 261 . Parts Sabotaged . | . . . . Parts Stolen . | . . . . Parts Stripped . | . . . . Power Chain Reactions . | . . . . Alert | -11 -10 -9 -8 ------- Run | Yrd Mat Mat Mat Maximum Alert Level . | . . . . Low Security (%) 100 | 100 100 100 100 Level 1 . | . . . . Level 2 . | . . . . Level 3 . | . . . . Level 4 . | . . . . Level 5 . | . . . . High Security . | . . . . Max Security . | . . . . Peak Influence 91 | 20 34 70 91 Initial 9 | . . 9 . Average 6 | . 6 13 25 Influence Increases 408 | 20 44 191 153 Destroy 0b10 Robot/C 280 | 20 20 120 120 Destroy 0b10 Robot/NC 20 | . . 10 10 Destroy Leader 74 | . 10 44 20 Successful Hack 14 | . 14 . . Disable Machine 15 | . . 15 . Destroy Structure 5 | . . 2 3 Influence Decreases 408 | 20 20 215 153 Entered New Map 15 | . . 15 . Time Decay 332 | 20 20 200 92 Lost Part 61 | . . . 61 Squads Dispatched 7 | . 1 3 3 Investigation 2 | . 1 1 . Extermination . | . . . . Reinforcement 3 | . . 2 1 Assault . | . . . . Garrison 2 | . . . 2 Intercept . | . . . . Searches Triggered . | . . . . Construction Impeded . | . . . . Haulers Reinforced . | . . . . Active Scanning Responses . | . . . . Cargo Convoy Interrupts . | . . . . Stealth | -11 -10 -9 -8 --------- Run | Yrd Mat Mat Mat Distress Signals 6 | . 2 . 4 Communications Jammed . | . . . . Distress Signals . | . . . . Times Spotted 36 | 1 2 14 19 Peak Tracking Total 10 | 1 1 3 10 Tactical Retreats 4 | . . 2 2 ECM-based Alert Blocks 4 | . . 2 2 Traps | -11 -10 -9 -8 ------- Run | Yrd Mat Mat Mat Traps Triggered 1 | . . 1 . Indirectly . | . . . . Trap Hack Attempts . | . . . . Triggered . | . . . . Disarmed . | . . . . Reprogrammed . | . . . . Reused . | . . . . Traps Extracted . | . . . . Installed . | . . . . Triggered . | . . . . Machines | -11 -10 -9 -8 ---------- Run | Yrd Mat Mat Mat Machines Disabled 1 | . . 1 . Max in Single Turn 1 | . . 1 . Machines Repaired . | . . . . Machines Dismantled . | . . . . Machines Sabotaged . | . . . . Overloaded Fab Kills . | . . . . Hacking | -11 -10 -9 -8 --------- Run | Yrd Mat Mat Mat Machines Accessed 4 | . 3 1 . Terminals 4 | . 3 1 . Fabricators . | . . . . Repair Stations . | . . . . Recycling Units . | . . . . Scanalyzers . | . . . . Garrison Access . | . . . . Total Hacks 5 | . 4 1 . Successful 1 | . 1 . . Failed 4 | . 3 1 . Catastrophic 1 | . . 1 . Database Lockouts . | . . . . Manual . | . . . . Terminals 5 | . 4 1 . Fabricators . | . . . . Repair Stations . | . . . . Recycling Units . | . . . . Scanalyzers . | . . . . Garrison Access . | . . . . Terminal Hacks 1 | . 1 . . Robot Analysis 1 | . 1 . . Fabricator Hacks . | . . . . Repair Station Hacks . | . . . . Recycling Unit Hacks . | . . . . Scanalyzer . | . . . . Garrison Access Hacks . | . . . . Unauthorized Hacks . | . . . . Terminals . | . . . . Fabricators . | . . . . Repair Stations . | . . . . Recycling Units . | . . . . Scanalyzers . | . . . . Garrison Access . | . . . . Data Cores Recovered . | . . . . Used . | . . . . Hacking Detections 4 | . 3 1 . Full Trace Events 1 | . 1 . . Feedback Events . | . . . . Feedback Blocked . | . . . . Robot Schematics Acquired . | . . . . Robots Built . | . . . . Authchips . | . . . . Time . | . . . . Total Robot Build Rating . | . . . . Part Schematics Acquired . | . . . . Parts Built . | . . . . Authchips . | . . . . Time . | . . . . Total Part Build Rating . | . . . . Part Studies Acquired . | . . . . Parts Repaired . | . . . . Time . | . . . . Parts Recycled . | . . . . Recycled Matter . | . . . . Retrieved Matter . | . . . . Retrieved Components . | . . . . Parts Scanalyzed . | . . . . Part Schematics Acquired . | . . . . Parts Damaged . | . . . . Bothacking | -11 -10 -9 -8 ------------ Run | Yrd Mat Mat Mat Used RIF Installer . | . . . . Robots Hacked . | . . . . Non-combat . | . . . . Combat . | . . . . Robot Hacks Applied . | . . . . Relay Couplers Released . | . . . . Fabnet Peak Effective % . | . . . . Robots Rewired . | . . . . Allies Hacked . | . . . . Hacks Repelled . | . . . . Allies | -11 -10 -9 -8 -------- Run | Yrd Mat Mat Mat Total Allies . | . . . . Largest Group . | . . . . Highest-Rated Group . | . . . . Highest-Rated Ally . | . . . . Total Orders . | . . . . Ally Attacks . | . . . . Total Damage . | . . . . Kills . | . . . . Allies Corrupted . | . . . . Allies Melted . | . . . . Intel | -11 -10 -9 -8 ------- Run | Yrd Mat Mat Mat Active Infowar (turns) 952 | . . 600 352 ECM 952 | . . 600 352 Robot Analysis Total 1 | . 1 . . Derelict Logs Recovered . | . . . . Drone Launches . | . . . . Drone Recoveries . | . . . . Exploration | -11 -10 -9 -8 ------------- Run | Yrd Mat Mat Mat Turns Passed 3440 | 2165 173 750 352 Spaces Moved 1359 | 757 122 369 111 Core 42 | 38 . . 4 Treads . | . . . . Legs 1317 | 719 122 369 107 Wheels . | . . . . Hover . | . . . . Flight . | . . . . Fastest Speed 50 | 50 120 120 190 Average Speed 143 | 116 120 182 218 Slowest Speed 850 | 120 120 190 850 Overloaded Moves . | . . . . Propulsion Burnouts . | . . . . Robots Hopped . | . . . . Potential Cave-ins . | . . . . Cave-ins Triggered . | . . . . Exploration Rate (%) 30 | 60 26 25 10 Regions Visited 3 Branch Regions . Pre-discovered Areas . | . . . . Known Exits Taken . | . . . . Unknown Exits Taken 3 | 1 1 1 . Scrap Searched . | . . . . Spaces Dug . | . . . . Terrain Destroyed 5 | . . 2 3 Melee . | . . . . Projectile 4 | . . 2 2 AOE . | . . . . Terrain Rammed . | . . . . Walls Destroyed . | . . . . Machines Disabled . | . . . . Actions | -11 -10 -9 -8 --------- Run | Yrd Mat Mat Mat Total 2759 | 2038 142 412 167 Wait 1279 | 1265 3 . 11 Move 1356 | 756 121 368 111 Hop . | . . . . Pick Up 39 | 9 7 15 8 Fast Attach . | . . . . Attach 13 | 6 2 3 2 Detach 1 | 1 . . . Swap 8 | . . 4 4 Drop 11 | . 4 5 2 Fire 48 | 1 4 17 26 Melee . | . . . . Ram . | . . . . Kick 4 | . 1 . 3 Crush . | . . . . Escape Stasis . | . . . . Rewire . | . . . . Trap . | . . . . Miscellaneous . | . . . . Route ------- -11/Scrapyard -10/Materials -9/Materials -8/Materials History --------- Turn | Location | Event 2 | -11/Scrapyard | Met Revision 17 67 | -11/Scrapyard | Discovered new exit (range 8) 2166 | -11/Scrapyard | Entered Materials 2167 | -10/Materials | Build established: Mutant 2167 | -10/Materials | Met a group of wandering Federalists 2293 | -10/Materials | Discovered new exit (range 14) 2339 | -10/Materials | Entered another Materials area 2339 | -9/Materials | Evolved 2 slots: Propulsion x2 3075 | -9/Materials | Discovered new exit (range 8) 3089 | -9/Materials | Entered another Materials area 3089 | -8/Materials | Evolved 2 slots: Power x1, Utility x1 3275 | -8/Materials | Garrison activated, responded to threat 3428 | -8/Materials | Core integrity fell below 50% 3437 | -8/Materials | Core integrity fell below 20% 3441 | -8/Materials | Destroyed by Y-45 Defender with Beam Rifle Last Messages --------------- Acquired Imp. Datajack. Slug penetrates G-47 Trooper. Ion Engine destroyed. Aluminum Leg destroyed. Slug penetrates Wall. Slug penetrates G-47 Trooper. G-47 Trooper destroyed. Acquired 48 matter. Critical hit (Burn: +37). Aluminum Leg destroyed. R-06 Scavenger collects Particle Gun. Critical hit (Burn: +37). W-25 Informer sends out distress signal. Lgt. Nuclear Core destroyed. Aluminum Leg destroyed. Gauss Rifle destroyed. Critical hit (Burn: +37). Slug penetrates Wall. Recalibrator destroyed. Penetrated by Slug. Map ----- +----------------------------------------------------+ | ????????????? #???????????????????????? | | ?????????????# "" [! #???????????????????????? | | ?????????????# "G !! #???????????????????????? | | ############?# "" #???????????????????????? | | #?# #???????????????????????? | | #?# #???????????????????????? | | #?# [ #??? ??????????????????? | | #?#######+##### ! ????????????? | | ####### #??????# / =! ????????????? | | # ######## % #### =! ????????????? | | """ + %= #??????????????????????????? | | "T" # ########### #??????????????????????????? | | ????# #?######### ##?????????????????????????? | | ??????# #?# # #?????????????????????????? | | #######+###= """ # #?????????????????????????? | | # # """ + " #?????????????????????????? | | # # """ # #####?????????????????????? | | # # """ # # #?????????????????????? | | # #| ?### ### ??????????????????????? | | ################???# #?? u??????????????????????? | | ??????????????????## ##?# #??????????????????????? | | ??????????????????# ### #??????????????????????? | | ??????????????????# Yg m#??????????????????????? | | ??????????????????# Y #??????????????????????? | | ?????????????????#####h #??????????????????????? | | ?????????? l g g@#??????????????????????? | | ?????????? ######## #??????????????????????? | | ????????????????????????# #??????????????????????? | | ????????????????????????# #??????????????????????? | | ????????????????????????# #??????????????????????? | | ????????????????????????#+#??????????????????????? | | ?????????????????????????????????????????????????? | | ?????????????????????????????????????????????????? | | ?????????????????????????????????????????????????? | | ?????????????????????????????????????????????????? | | ?????????????????????????????????????????????????? | | ?????????????????????????????????????????????????? | | ?????????????????????????????????????????????????? | | ?????????????????????????????????????????????????? | | ?????????????????????????????????????????????????? | | ?????????????????????????????????????????????????? | | ?????????????????????????????????????????????????? | | ?????????????????????????????????????????????????? | | ?????????????????????????????????????????????????? | | ?????????????????????????????????????????????????? | | ?????????????????????????????????????????????????? | | ?????????????????????????????????????????????????? | | ?????????????????????????????????????????????????? | | ?????????????????????????????????????????????????? | | ?????????????????????????????????????????????????? | +----------------------------------------------------+ Best States ------------- Heat Dissipation 31 Energy Generation 19 Energy Capacity 310 Matter Stores 300 Matter Capacity 300 Sight Range 16 Terrain Scan Density 10 ECM Strength 1 Additional Mass Support 6 Evasion (%) 55 Targeting Accuracy 6 Item Schematics ----------------- None Robot Schematics ------------------ None Fabricated ------------ Nothing Repaired ---------- Nothing Studied --------- None Alien Tech Used ----------------- None Achievements -------------- Bumper Bots DATA ERROR: Steam Global Achievement% Ghost 'Em I Have A Map? One Hack Too Far Organ Harvest Please Form A Line Troublemaker Challenges ------------ None Game ------ Seed AluminumDispersalFilter Manual? 0 Play Time 00:24:44 Cumulative 0.8 hours Start 2025.12.01 @ 21:45:37 End 2025.12.01 @ 22:08:52 Sessions 1 Manual Loads 0 Difficulty Rogue Special Mode None Game No. 2 Rogue 2 Adventurer 0 Explorer 0 Win Type - Total 0 Types 0/0/0/0/0/0/0/0/0/0 Lore% 0 Gallery% 2 Achievement% 3 Wizard Run 0 Options --------- Layout 1 ASCII 0 Keyboard 0 Movement Numpad Keybinds 0 Fullscreen 1 Font 24/Smallcaps Map View 50x35 Zoom Use 0% Tactical HUD 0 Map Filters NONE Filters NONE Steam 1 RUN: f4baca44-19c7-435d-a180-c4cbdfcd9f8d